Cogmind - Beta 15 @@@ ROGUE MODE // 2025.06.25 @ 12:58:12 Player: EX-OCT Result: Core destroyed Performance ------------- Evolutions (0) 0 Regions Visited (1) 200 Robots Destroyed (22) 110 Value Destroyed (535) 535 Prototype IDs (0) 0 Alien Tech Used (0) 0 Bonus (0) 0 TOTAL SCORE: 845 Bonus ------- None Cogmind --------- Core Integrity 0/250 Matter 300/300 Energy 100/100 System Corruption 0% Temperature Critical (535) Movement Walking (120) Location -10/Materials Parts ------- > --- POWER (1) -------- (None) > --- PROPULSION (2) --- Aluminum Leg Aluminum Leg > --- UTILITY (2) ------ Machine Analyzer > --- WEAPON (2) ------- Beam Cannon > --- INVENTORY (5) ---- Aluminum Leg Beam Cannon Grenade Launcher Datajack Mining Laser Peak State ------------ > --- POWER ------------ Ion Engine > --- PROPULSION ------- Aluminum Leg Aluminum Leg > --- UTILITY ---------- Improved Terrain Scanner Terrain Scan Processor > --- WEAPON ----------- Beam Cannon Light Assault Rifle > --- INVENTORY -------- Light Ion Engine Utility Shielding Grenade Launcher Datajack Mining Laser [Rating: 10] Favorites ----------- Power Ion Engine Engine Ion Engine Propulsion Aluminum Leg Leg Aluminum Leg Utility Machine Analyzer Device Improved Terrain Scanner Processor Machine Analyzer Protection Light Armor Plating Weapon Beam Cannon Energy Cannon Beam Cannon Ballistic Gun Light Assault Rifle Launcher Grenade Launcher Special Weapon Mining Laser Build | -11 -10 ------- Run | Yrd Mat Slots Evolved . | . . Power . | . . Propulsion . | . . Utility . | . . Weapon . | . . Parts Attached 21 | 6 15 Power 3 | 1 2 Engine 3 | 1 2 Core . | . . Reactor . | . . Propulsion 5 | 2 3 Treads . | . . Leg 5 | 2 3 Wheel . | . . Hover . | . . Flight . | . . Utility 6 | 1 5 Device 2 | 1 1 Storage . | . . Processor 2 | . 2 Hackware . | . . Protection 2 | . 2 Artifact . | . . Weapon 7 | 2 5 Energy Gun . | . . Energy Cannon 3 | . 3 Ballistic Gun 2 | 2 . Ballistic Cannon . | . . Launcher 1 | . 1 Special Weapon 1 | . 1 Impact Weapon . | . . Slashing Weapon . | . . Piercing Weapon . | . . Special Melee Weapon . | . . Unidentified Prototypes . | . . Parts Lost 6 | . 6 Power 3 | . 3 Propulsion . | . . Utility 1 | . 1 Weapon 2 | . 2 Highest Loss Streak 4 | . 4 To Critical Strikes . | . . Average Backups 4 | . 4 Power . | . . Propulsion . | . . Utility . | . . Weapon 2 | . 2 Tool/Special . | . . Unused Backups 2 | . 2 Power . | . . Propulsion . | . . Utility . | . . Weapon 1 | . 1 Tool/Special 1 | . 1 Average Slot Usage (%) 96 | . 96 Engine 13 | . 13 Leg 28 | . 28 Device 6 | . 6 Processor 10 | . 10 Protection 8 | . 8 Energy Cannon 15 | . 15 Ballistic Gun 9 | . 9 Special Weapon 2 | . 2 Peak Build Rating 10 | 8 10 Average Rating 8 | 4 8 On Entrance 4 | . 8 Naked Turns . | . . Heaviest Build 13 | 8 13 Greatest Support 20 | 20 20 Greatest Overweight (x) . | . . Average Overweight (x) . | . . Largest Inventory Capacity 5 | 5 5 Average Capacity 5 | 5 5 Most Carried 5 | 2 5 Average Carried 4 | 1 4 Final Capacity 5 | 5 5 Final Carried 5 | 2 5 Class Distribution -------------------- 100% | Mutant Dominant Class ---------------- Mutant | -10/Materials Resources | -11 -10 ----------- Run | Yrd Mat Matter Collected 507 | 272 235 Remotely 42 | . 42 Salvage Created 752 | 68 684 Parts 42 | 8 34 Haulers Intercepted . | . . Recyclers Shooed . | . . Parts Field Recycled . | . . Retrieved Matter . | . . Parts Self-Destructed . | . . Prevented . | . . Kills | -11 -10 ------- Run | Yrd Mat Combat Hostiles Destroyed 15 | . 15 Guns 3 | . 3 Cannons 9 | . 9 AOE 3 | . 3 Classes Destroyed 6 | 2 4 Builder 2 | . 2 Tunneler 1 | 1 . Recycler 3 | 1 2 Mechanic 1 | . 1 Swarmer 3 | . 3 Grunt 12 | . 12 Best Kill Streak 7 | 1 7 Combat Bots Only 5 | . 5 Max Kills in Single Turn 2 | 1 2 Gunslinging . | . . Exploded 1 | . 1 Melee . | . . Uniques/NPCs Destroyed . | . . Combat | -11 -10 -------- Run | Yrd Mat Hostile Shots Fired 88 | . 88 Missed 17 | . 17 Hits 71 | . 71 Projectile 71 | . 71 Critical Strikes 1 | . 1 Damage Taken 1039 | . 1039 Core 279 | . 279 Absorbed by Shields . | . . Core Remaining (%) 100 | 100 . Volleys Fired 68 | 6 62 Largest 2 | 2 2 Hottest 120 | 40 120 Shots Fired 128 | 12 116 Gun 51 | 12 39 Cannon 68 | . 68 Launcher 4 | . 4 Special 5 | . 5 Kinetic 51 | 12 39 Thermal 73 | . 73 Explosive 4 | . 4 Electromagnetic . | . . Robot Hit Streak 11 | 4 11 Robot Miss Streak 4 | 2 4 Penetration Max . | . . Secondary Targets . | . . Shots Hit Robots 80 | 8 72 Core Hits 38 | 5 33 Critical Kills . | . . Critical Parts Destroyed . | . . Critical Strikes . | . . Melee Attacks . | . . Impact . | . . Slashing . | . . Piercing . | . . Sneak Attacks . | . . Combat Hostiles . | . . Follow-up Attacks . | . . Damage Inflicted 1447 | 62 1385 Guns 264 | 62 202 Cannons 843 | . 843 Explosions 258 | . 258 Melee . | . . Ramming 6 | . 6 Kinetic 264 | 62 202 Thermal 919 | . 919 Explosive 258 | . 258 Electromagnetic . | . . Impact . | . . Slashing . | . . Piercing . | . . Highest Corruption . | . . Average Corruption . | . . Corruption Purged . | . . Corruption Blocked . | . . Overload Shots . | . . Overflow Damage 8 | . 8 Projectiles 4 | . 4 Explosions 4 | . 4 Melee . | . . Knockbacks . | . . Impact . | . . Kinetic . | . . Secondary . | . . Self-Inflicted Damage . | . . Shots . | . . Rammed . | . . Targets Rammed 2 | . 2 Kicked 2 | . 2 Crushed . | . . Highest Temperature 535 | . 535 Average Temperature 147 | . 147 Received Heat Transfer 336 | . 336 Effects 8 | . 8 Energy Bleed 4 | . 4 Short Circuit 1 | . 1 Damage (minor) 1 | . 1 Damage (core) 2 | . 2 Siege Activations . | . . Martial Activations . | . . Shielding Activations . | . . Robots Disrupted . | . . Combat Hostiles . | . . Robots Corrupted . | . . Combat Hostiles . | . . Parts Fried . | . . Impact Corruptions . | . . Robots Melted . | . . Combat Hostiles . | . . Parts Melted 2 | . 2 Heat Transferred 1926 | . 1926 Parts Sabotaged . | . . Parts Stolen . | . . Parts Stripped . | . . Power Chain Reactions . | . . Alert | -11 -10 ------- Run | Yrd Mat Maximum Alert Level 1 | . 1 Low Security (%) 86 | 100 85 Level 1 13 | . 14 Level 2 . | . . Level 3 . | . . Level 4 . | . . Level 5 . | . . High Security . | . . Max Security . | . . Peak Influence 249 | 5 249 Initial . | . . Average 136 | 1 149 Influence Increases 557 | 10 547 Destroy 0b10 Robot/C 300 | . 300 Destroy 0b10 Robot/NC 35 | 10 25 Destroy Leader 70 | . 70 Successful Hack 24 | . 24 Select Force Hacks 60 | . 60 Disable Machine 15 | . 15 Destroy Structure 23 | . 23 Lose Combat Pursuer 30 | . 30 Influence Decreases 456 | 10 446 Time Decay 396 | 10 386 Lost Part 60 | . 60 Squads Dispatched 3 | . 3 Investigation 3 | . 3 Extermination . | . . Reinforcement . | . . Assault . | . . Garrison . | . . Intercept . | . . Searches Triggered . | . . Construction Impeded . | . . Haulers Reinforced . | . . Active Scanning Responses . | . . Cargo Convoy Interrupts . | . . Stealth | -11 -10 --------- Run | Yrd Mat Distress Signals . | . . Communications Jammed . | . . Distress Signals . | . . Times Spotted 21 | . 21 Peak Tracking Total 4 | . 4 Tactical Retreats 2 | . 2 Traps | -11 -10 ------- Run | Yrd Mat Traps Triggered 1 | . 1 Indirectly . | . . Trap Hack Attempts . | . . Triggered . | . . Disarmed . | . . Reprogrammed . | . . Reused . | . . Traps Extracted . | . . Installed . | . . Triggered . | . . Machines | -11 -10 ---------- Run | Yrd Mat Machines Disabled 1 | . 1 Max in Single Turn 1 | . 1 Machines Repaired . | . . Machines Dismantled . | . . Machines Sabotaged . | . . Overloaded Fab Kills . | . . Hacking | -11 -10 --------- Run | Yrd Mat Machines Accessed 9 | . 9 Terminals 7 | . 7 Fabricators . | . . Repair Stations . | . . Recycling Units 2 | . 2 Scanalyzers . | . . Garrison Access . | . . Total Hacks 27 | . 27 Successful 16 | . 16 Failed 10 | . 10 Catastrophic 1 | . 1 Database Lockouts 1 | . 1 Manual 26 | . 26 Terminals 22 | . 22 Fabricators . | . . Repair Stations . | . . Recycling Units 5 | . 5 Scanalyzers . | . . Garrison Access . | . . Terminal Hacks 5 | . 5 Robot Schematic 1 | . 1 Robot Analysis 3 | . 3 Zone Layout 1 | . 1 Fabricator Hacks . | . . Repair Station Hacks . | . . Recycling Unit Hacks . | . . Scanalyzer . | . . Garrison Access Hacks . | . . Unauthorized Hacks 11 | . 11 Terminals 9 | . 9 Botnet 4 | . 4 Skim 5 | . 5 Fabricators . | . . Repair Stations . | . . Recycling Units 2 | . 2 Tunnel 2 | . 2 Scanalyzers . | . . Garrison Access . | . . Data Cores Recovered . | . . Used . | . . Hacking Detections 8 | . 8 Full Trace Events . | . . Feedback Events . | . . Feedback Blocked . | . . Robot Schematics Acquired 1 | . 1 Robots Built . | . . Authchips . | . . Time . | . . Total Robot Build Rating . | . . Part Schematics Acquired . | . . Parts Built . | . . Authchips . | . . Time . | . . Total Part Build Rating . | . . Parts Repaired . | . . Time . | . . Parts Recycled . | . . Recycled Matter . | . . Retrieved Matter . | . . Retrieved Components . | . . Parts Scanalyzed . | . . Part Schematics Acquired . | . . Parts Damaged . | . . Bothacking | -11 -10 ------------ Run | Yrd Mat Used RIF Installer . | . . Robots Hacked . | . . Non-combat . | . . Combat . | . . Robot Hacks Applied . | . . Relay Couplers Released . | . . Fabnet Peak Effective % . | . . Robots Rewired . | . . Allies Hacked . | . . Hacks Repelled . | . . Allies | -11 -10 -------- Run | Yrd Mat Total Allies . | . . Largest Group . | . . Highest-Rated Group . | . . Highest-Rated Ally . | . . Total Orders . | . . Ally Attacks . | . . Total Damage . | . . Kills . | . . Allies Corrupted . | . . Allies Melted . | . . Intel | -11 -10 ------- Run | Yrd Mat Active Infowar (turns) 915 | 13 902 Terrain 415 | 13 402 Machine Analysis 500 | . 500 Robot Analysis Total 3 | . 3 Derelict Logs Recovered . | . . Drone Launches . | . . Drone Recoveries . | . . Exploration | -11 -10 ------------- Run | Yrd Mat Turns Passed 984 | 82 902 Spaces Moved 591 | 50 541 Core 6 | 6 . Treads . | . . Legs 585 | 44 541 Wheels . | . . Hover . | . . Flight . | . . Fastest Speed 50 | 50 120 Average Speed 119 | 111 120 Slowest Speed 120 | 120 120 Overloaded Moves . | . . Propulsion Burnouts . | . . Robots Hopped . | . . Potential Cave-ins . | . . Cave-ins Triggered . | . . Exploration Rate (%) 43 | 4 82 Regions Visited 1 Branch Regions . Pre-discovered Areas 3 | . 3 Known Exits Taken . | . . Unknown Exits Taken 1 | 1 . Scrap Searched . | . . Spaces Dug 2 | . 2 Terrain Destroyed 25 | . 25 Melee . | . . Projectile 2 | . 2 AOE 23 | . 23 Terrain Rammed . | . . Walls Destroyed . | . . Machines Disabled . | . . Actions | -11 -10 --------- Run | Yrd Mat Total 738 | 63 675 Wait 39 | . 39 Move 590 | 49 541 Hop . | . . Pick Up 6 | 2 4 Fast Attach 13 | 6 7 Attach 3 | . 3 Detach 2 | . 2 Swap 8 | . 8 Drop 7 | . 7 Fire 68 | 6 62 Melee . | . . Ram . | . . Kick 2 | . 2 Crush . | . . Escape Stasis . | . . Rewire . | . . Trap . | . . Miscellaneous . | . . Route ------- -11/Scrapyard -10/Materials (discovered 6 exits: *Mat x3 / [*Min x2] / Sub) History --------- Turn | Location | Event 3 | -11/Scrapyard | Discovered new exit (range 15) 83 | -11/Scrapyard | Entered Materials 301 | -10/Materials | Build established: Mutant 347 | -10/Materials | Discovered new exit (range 8) 434 | -10/Materials | Discovered new exit (range 8) 527 | -10/Materials | Learned location of Mines (-10) 529 | -10/Materials | Discovered new exit (range 5) 578 | -10/Materials | Identified exit to Subcaves 578 | -10/Materials | Identified exit to Materials 598 | -10/Materials | Central database locked down 619 | -10/Materials | Loaded intel: 4 trap records 642 | -10/Materials | Core integrity fell below 50% 651 | -10/Materials | Learned location of 2 exits from Materials 674 | -10/Materials | Learned location of 2 exits from Subcaves 683 | -10/Materials | Derelicts attacked the area 687 | -10/Materials | Learned location of 1 exit from Recycling 710 | -10/Materials | Learned Storage emergency access door positions 982 | -10/Materials | Core integrity fell below 20% 986 | -10/Materials | Core destroyed Last Messages --------------- 00808_ Acquired 13 matter. 00849_ Kicked R-06 Scavenger out of the way. 00871_ S-10 Pest destroyed. 00877_ Acquired 11 matter. 00891_ Acquired 1 matter. 00899_ Dropped Aluminum Leg. 00904_ Acquired 6 matter. 00906_ Dropped Aluminum Leg. 00938_ Acquired 14 matter. 00947_ Lgt. Ion Engine destroyed. 00957_ Acquired Lgt. Ion Engine. 00969_ Lgt. Armor Plating destroyed. 00979_ Overheating: Beam Cannon damaged (-28). 00983_ Beam Cannon broken. 00983_ Overheating: Short circuit. 00983_ Broken Beam Cannon destroyed. 00984_ Overheating: Energy bleed (-22). 00985_ Overheating: Core damaged (-32). 00985_ Lgt. Ion Engine destroyed. 00986_ Overheating: Core damaged (-42). Map ----- +----------------------------------------------------+ | ??#????#?##???####?###???##????????##?##?#??#?## | | ??#??###???#?#??##???##??#?##?#?#???###???####?? | | #?##????#??#?#?##########??#?#?#?????#??#?##???? | | ?#??###########################?##???###??#??##? | | ?#?## #???############?? | | ????# ########### #?#?# ## ### | | ????# ####"""#### ##### < ## ## | | ?#?## ###"|||"### ## """ ## | | ??###+##+##"" ""## ########### ## """ ## | | ??# # ## ###???##??# ## """ ## | | #?# # < ## ###??????## ## ## | | ??# # ## ######?#?## ## ?# | | ??# "T" # ## ##+########?# ###+##### | | ??# """ ## ### # / #?# | | ############# #### # [ ### T ! | | ##?### # #### # = #?# ! = | | ###?## + # #?# ######### | | ????##! # */ #########??#????? | | ?#?#?# # =%# ################# | | #??### ###### =# ## # # | | ?#???# #?##?# # ## # """"" + | | ?????########?#### #########+##![ # """"" # | | #?????? ?? ?? ? ?# #?#????## ##[ # """"" |# | | ??????#?????? ??## ##### ? # ## # """"" # | | ?????##?? ? ???# % #;###### ## # """"" + | | ?#???????? ????# =R@ =+ # """"" # | | ???##???"?" ????+^ " / = # # """"" # | | ??????#??????""?# [ # # # | | ?????#???"??????# ########+################ | | ?????#?? ?? ? ??## ##?# # #??????????# | | ???????????#?##?## #?#??# #??????????# | | ???????????????#?# ##??## """ #??????????# | | ?????#???#?##?#?## #????# """"" #??????????# | | ?????????#???##??# ###??# """"" #??????????# | | ?????????????????# % #????#/ """"" #?????????? | | ?#???????????????# #??#?# """ #?????????? | | ????#?????##?????# ###??# #?????????? | | ?????????????????# #????# #??????????## | | ?#???#?########### #????##########???????????? | | ?????#?## ! # #????#??????#?????????????? | | ??##????# """ # #?????????????????????????? | | ????????# """ + #???#?????????????????????? | | ????????# =*""" # #?????????????????????????? | | ??#???#?#[===! # #????##???????????????????? | | ????????#!%=%"" # #????????#?????????????#### | | ?#?????##=*%""" # #??#??#??#?????????? | | ?#??????#[%["""* # ##???#?????????????????#### | | ?#???#??#![%*[%!=+ #?#????????????????????? | | ????#??###+####### #?????#????????????????? | | ?????### ###?????#??????????????? | +----------------------------------------------------+ Best States ------------- Heat Dissipation 25 Energy Generation 10 Energy Capacity 250 Matter Stores 300 Matter Capacity 300 Sight Range 16 Terrain Scan Range 16 Terrain Scan Density 85 Armor Coverage 150 Utility Shielding 33 Evasion (%) 55 Item Schematics ----------------- None Robot Schematics ------------------ M-13 Machinist | -10/Materials | Hacked Fabricated ------------ Nothing Repaired ---------- Nothing Alien Tech Used ----------------- None Achievements -------------- None Challenges ------------ None Game ------ Seed LightningLayeredBotcube Manual? 0 Play Time 00:10:36 Cumulative 275.6 hours Start 2025.06.25 @ 12:49:23 End 2025.06.25 @ 12:58:12 Sessions 1 Manual Loads 0 Difficulty Rogue Special Mode None Game No. 137 Rogue 137 Adventurer 0 Explorer 0 Win Type - Total 17 Types 6/0/5/1/4/1/0/0/0/0 Lore% 83 Gallery% 72 Achievement% 68 Wizard Run 0 Options --------- Layout 1 ASCII 0 Keyboard 0 Movement Numpad Keybinds 0 Fullscreen 1 Font 24/Smallcaps Map View 50x35 Zoom Use 0% Tactical HUD 1 Map Filters NONE Filters NONE Steam 1 RUN: 44497c7c-623e-464d-aa02-efe859724338